bitfinex/quotes_BTCUSD_20240617
["timestamp","ask_amount","ask_price","bid_price","bid_amount"]
[1718597859170,1e-08,66302.0,66301.0,1.00754267]
[1718597859390,1e-08,66302.0,66301.0,1.3616295]
[1718597859599,1e-08,66302.0,66301.0,1.4535465]
[1718597859823,1e-08,66302.0,66301.0,1.5742465]
[1718597860045,0.1182,66315.0,66314.0,0.120638]
[1718597860251,0.17323585,66315.0,66314.0,0.24222588]
[1718597860457,0.12362403,66315.0,66314.0,0.24222588]
[1718597860864,0.12362403,66315.0,66314.0,0.12158788]
[1718597861311,0.12362403,66315.0,66312.0,0.12064]
[1718597861508,0.12362403,66315.0,66313.0,0.11668782]
[1718597861951,0.12362403,66315.0,66314.0,0.008]
[1718597862162,0.23606403,66315.0,66314.0,0.008]
[1718597862387,0.23606403,66315.0,66314.0,0.12468673]
[1718597863019,0.23606403,66315.0,66314.0,0.008]
[1718597863228,0.12362403,66315.0,66314.0,0.008]
[1718597863376,0.12362403,66315.0,66311.0,0.00326694]
[1718597863574,0.12362403,66315.0,66314.0,0.007]
[1718597863778,0.59797203,66315.0,66314.0,0.007]
[1718597863995,0.98734403,66315.0,66314.0,0.007]
[1718597864195,0.929047,66312.0,66311.0,0.00326694]
[1718597864400,0.93446569,66312.0,66311.0,0.00326694]
[1718597864798,0.98506569,66312.0,66311.0,0.00326694]
[1718597865046,1.22634869,66312.0,66311.0,0.00326694]
[1718597865185,0.98506569,66312.0,66311.0,0.00326694]
[1718597865386,0.98506569,66312.0,66311.0,0.01526694]
[1718597866160,0.98506569,66312.0,66311.0,0.02626694]
[1718597866803,1.27634869,66312.0,66311.0,0.02626694]
[1718597867009,1.03506569,66312.0,66311.0,0.02626694]
[1718597868798,0.98446569,66312.0,66311.0,0.02626694]
[1718597869003,1.03506569,66312.0,66311.0,0.02626694]
[1718597871756,0.74318269,66312.0,66311.0,0.02626694]
[1718597871958,0.79378269,66312.0,66311.0,0.02626694]
[1718597872160,0.74378269,66312.0,66311.0,0.02626694]
[1718597872317,0.33125869,66312.0,66311.0,0.02626694]
[1718597873104,0.33125869,66312.0,66311.0,0.1444945]
[1718597873353,0.45189969,66312.0,66311.0,0.2063353]
[1718597873905,0.69318269,66312.0,66311.0,0.2063353]
[1718597874163,0.69318269,66312.0,66311.0,0.1444945]
[1718597874366,0.69318269,66312.0,66311.0,0.20635153]
[1718597874769,0.45189969,66312.0,66311.0,0.20635153]
[1718597875188,0.69318269,66312.0,66311.0,0.20635153]
[1718597875768,0.33945969,66312.0,66311.0,0.20635153]
[1718597876241,0.45189969,66312.0,66311.0,0.20635153]
[1718597876926,0.33945969,66312.0,66311.0,0.20635153]
[1718597877545,0.33945969,66312.0,66311.0,0.08812397]
[1718597878175,0.33945969,66312.0,66311.0,0.20333883]
[1718597879164,0.45189969,66312.0,66311.0,0.20333883]
[1718597880509,0.75350369,66312.0,66311.0,0.20333883]
[1718597880915,0.75350369,66312.0,66311.0,0.02626694]
[1718597881112,0.75350369,66312.0,66311.0,0.20327119]
[1718597882917,0.45189969,66312.0,66311.0,0.20327119]
[1718597883324,0.21881869,66312.0,66311.0,0.20327119]
[1718597883736,0.67122469,66312.0,66311.0,0.20327119]
[1718597884224,0.21881869,66312.0,66311.0,0.35407519]
[1718597884389,0.21881869,66312.0,66311.0,0.20327119]
[1718597885275,0.21881869,66312.0,66311.0,0.24830499]
[1718597885487,0.36962069,66312.0,66311.0,0.24830499]
[1718597885685,0.21881869,66312.0,66311.0,0.20327119]
[1718597885886,0.12131869,66312.0,66311.0,0.20327119]
[1718597886048,0.12131869,66312.0,66311.0,0.20074496]
[1718597886250,0.27212069,66312.0,66311.0,0.24577876]
[1718597886867,0.27212069,66312.0,66311.0,0.20074496]
[1718597887267,0.27212069,66312.0,66311.0,0.24577876]
[1718597889105,0.36456069,66312.0,66311.0,0.24577876]
[1718597889372,0.38456069,66312.0,66311.0,0.20074496]
[1718597890034,0.27212069,66312.0,66311.0,0.20074496]
[1718597890235,0.38456069,66312.0,66311.0,0.20077488]
[1718597890394,0.68616469,66312.0,66311.0,0.26832559]
[1718597890616,0.6870997,66312.0,66311.0,0.20077488]
[1718597891042,0.6870997,66312.0,66311.0,0.08047222]
[1718597891244,0.6870997,66312.0,66311.0,0.19473929]
[1718597891456,0.6870997,66312.0,66311.0,0.26239694]
[1718597892272,0.9887037,66312.0,66311.0,0.26234064]
[1718597892469,0.9887037,66312.0,66311.0,0.19468299]
[1718597892470,1.1765867,66312.0,66311.0,0.19468299]
[1718597892862,1.4781907,66312.0,66311.0,0.19468299]
[1718597893082,1.5287907,66312.0,66311.0,0.19468299]
[1718597893502,1.2271867,66312.0,66311.0,0.19468299]
[1718597894542,1.2271867,66312.0,66311.0,0.08041592]
[1718597894757,1.2271867,66312.0,66311.0,0.19556805]
[1718597896275,1.2271867,66312.0,66311.0,0.24069532]
[1718597896714,0.1711367,66312.0,66311.0,0.24069532]
[1718597896934,0.1711367,66312.0,66311.0,0.7607438]
[1718597896935,0.0063537,66312.0,66311.0,0.7607438]
[1718597897174,0.0063537,66312.0,66311.0,0.84818105]
[1718597897379,0.00093501,66312.0,66311.0,0.39576805]
[1718597897618,0.00093501,66312.0,66311.0,0.39572074]
[1718597897869,0.86098912,66312.0,66311.0,0.19552074]
[1718597898112,0.88232512,66312.0,66311.0,0.19552074]
[1718597898337,0.88232512,66312.0,66311.0,0.30843095]
[1718597898338,0.41768112,66312.0,66311.0,0.30843095]
[1718597899446,0.41768112,66312.0,66311.0,0.19552074]
[1718597900074,0.53012112,66312.0,66311.0,0.19552074]
[1718597901181,0.83172512,66312.0,66311.0,0.19552074]
[1718597901604,0.26687912,66312.0,66311.0,0.19552074]
[1718597901837,0.12017912,66312.0,66311.0,0.19552074]
[1718597902270,0.28261912,66312.0,66311.0,0.19552074]
[1718597902574,0.73502512,66312.0,66311.0,0.19552074]
[1718597903287,1.47783312,66312.0,66311.0,0.28589107]
[1718597903969,1.47783312,66312.0,66311.0,0.19552074]
[1718597904365,1.48783312,66312.0,66311.0,0.19552074]
[1718597904803,1.48783312,66312.0,66311.0,0.01876694]
[1718597904950,1.48783312,66312.0,66311.0,0.08046045]
[1718597905157,1.48783312,66312.0,66311.0,0.26298232]
[1718597905318,1.53671612,66312.0,66311.0,0.20128881]
[1718597905532,1.52671612,66312.0,66311.0,0.20128881]
[1718597905738,1.53671612,66312.0,66311.0,0.17870355]
[1718597905945,1.53671612,66312.0,66311.0,0.06395695]
[1718597906176,1.53671612,66312.0,66311.0,0.01876694]
[1718597906841,1.53671612,66312.0,66311.0,0.011]
[1718597907079,1.53671612,66312.0,66311.0,0.023]
[1718597907283,1.53671612,66312.0,66311.0,0.011]
[1718597907740,1.53671612,66312.0,66311.0,0.012]
[1718597907951,2.1424957,66312.0,66311.0,0.012]
[1718597908265,2.0918957,66312.0,66311.0,0.001]
[1718597908465,2.1424957,66312.0,66311.0,0.001]
[1718597908664,2.1424957,66312.0,66311.0,0.012]
[1718597909092,2.1424957,66312.0,66311.0,0.001]
[1718597909338,2.1424957,66312.0,66302.0,0.00085]
[1718597909339,1.438197,66303.0,66302.0,0.00085]
[1718597909523,1.488797,66303.0,66302.0,0.00085]
[1718597909682,1.54308696,66303.0,66302.0,0.00085]
[1718597910710,1.84473196,66303.0,66302.0,0.00085]
[1718597910944,1.99681975,66303.0,66302.0,0.00885]
[1718597911361,1.99681975,66303.0,66302.0,0.01585]
[1718597912257,1.99681975,66303.0,66302.0,0.00085]
[1718597912473,1.94621975,66303.0,66302.0,0.00085]
[1718597912797,2.00181975,66303.0,66302.0,0.00085]
[1718597921296,1.79181975,66303.0,66302.0,0.00085]
[1718597921524,1.33808696,66303.0,66302.0,0.00085]
[1718597921754,1.32808696,66303.0,66302.0,0.00085]
[1718597923248,1.32308696,66303.0,66302.0,0.00085]
[1718597923478,1.33708696,66303.0,66302.0,0.00085]
[1718597924019,1.34408696,66303.0,66302.0,0.00085]
[1718597924279,1.34108696,66303.0,66302.0,0.00085]
[1718597924680,1.34408696,66303.0,66302.0,0.00085]
[1718597926508,1.33408696,66303.0,66302.0,0.00085]
[1718597926749,1.34408696,66303.0,66302.0,0.00085]
[1718597930075,1.29348696,66303.0,66302.0,0.00085]
[1718597930274,1.34408696,66303.0,66302.0,0.00085]
[1718597934251,1.46358696,66303.0,66302.0,0.00085]
[1718597936935,1.55758696,66303.0,66302.0,0.00085]
[1718597937785,1.50698696,66303.0,66302.0,0.00085]
[1718597937991,1.55758696,66303.0,66302.0,0.00085]
[1718597938576,1.70967475,66303.0,66302.0,0.00085]
[1718597938781,1.60567475,66303.0,66302.0,0.00085]
[1718597938980,1.45358696,66303.0,66302.0,0.00085]
[1718597939272,1.45058696,66303.0,66302.0,0.00085]
[1718597939453,1.44458696,66303.0,66302.0,0.00085]
[1718597939653,1.44658696,66303.0,66302.0,0.00085]
[1718597939860,1.44458696,66303.0,66302.0,0.00085]
[1718597940262,1.45758696,66303.0,66302.0,0.00085]
[1718597940463,1.32808696,66303.0,66302.0,0.00085]
[1718597941420,1.33208696,66303.0,66302.0,0.00085]
[1718597941991,0.22572996,66303.0,66302.0,0.00085]
[1718597942184,0.22632996,66303.0,66302.0,0.11585]
[1718597942386,0.11388996,66303.0,66302.0,0.23209254]
[1718597942589,0.26171196,66303.0,66302.0,0.32479254]
[1718597942766,0.25571196,66303.0,66302.0,0.38661104]
[1718597942976,0.20711196,66303.0,66302.0,0.32479254]
[1718597943154,0.14872996,66303.0,66302.0,0.32479254]
[1718597943377,0.14872996,66303.0,66302.0,0.3867161]
[1718597943378,0.21732996,66303.0,66302.0,0.3867161]
[1718597943775,0.21732996,66303.0,66302.0,0.3907161]
[1718597943776,0.66979696,66303.0,66302.0,0.3907161]
[1718597943978,0.97144196,66303.0,66302.0,0.3907161]
[1718597944183,0.97144196,66303.0,66302.0,0.32879254]
[1718597944602,0.97144196,66303.0,66302.0,0.21255]
[1718597944828,0.97144196,66303.0,66302.0,0.21655]
[1718597945232,1.02144196,66303.0,66302.0,0.00885]
[1718597945435,1.32308696,66303.0,66302.0,0.00885]
[1718597946767,1.33308696,66303.0,66302.0,0.00885]
[1718597947478,1.27248696,66303.0,66302.0,0.00885]
[1718597947683,1.32308696,66303.0,66302.0,0.00885]
[1718597949387,0.97084196,66303.0,66302.0,0.00885]
[1718597949593,1.02144196,66303.0,66302.0,0.00085]
[1718597949793,1.32308696,66303.0,66302.0,0.00085]
[1718597949992,1.32308696,66303.0,66302.0,0.00285]
[1718597950437,1.32308696,66303.0,66302.0,0.00085]
[1718597950647,1.32308696,66303.0,66302.0,0.00185]
[1718597950863,1.32308696,66303.0,66302.0,0.00385]
[1718597951478,1.02144196,66303.0,66302.0,0.00385]
[1718597951827,1.02144196,66303.0,66302.0,0.00285]
[1718597952266,1.02144196,66303.0,66302.0,0.00385]
[1718597952496,0.36755196,66303.0,66302.0,0.00385]
[1718597952695,0.41815196,66303.0,66302.0,0.00385]
[1718597953022,0.10488996,66303.0,66302.0,0.00385]
[1718597953229,0.10488996,66303.0,66302.0,0.21395]
[1718597953437,0.00540696,66303.0,66302.0,0.3287456]
[1718597953663,0.00540696,66303.0,66302.0,0.41887685]
[1718597955834,0.00540696,66303.0,66302.0,0.56970185]
[1718597956607,0.00540696,66303.0,66302.0,0.87135185]
[1718597956813,0.048883,66304.0,66303.0,0.358922]
[1718597957039,0.141323,66304.0,66303.0,0.3228956]
[1718597957259,0.141323,66304.0,66303.0,0.39064397]
[1718597957903,0.613783,66304.0,66303.0,0.3228956]
[1718597958337,0.613783,66304.0,66303.0,0.2081]
[1718597958570,0.048883,66304.0,66303.0,0.32359664]
[1718597959001,0.362743,66304.0,66303.0,0.32359636]
[1718597959656,0.412743,66304.0,66303.0,0.11549636]
[1718597959935,1.016023,66304.0,66303.0,0.16067004]
[1718597960149,0.452467,66303.0,66302.0,0.04601564]
[1718597960361,0.564907,66303.0,66302.0,0.04601564]
[1718597960569,0.564907,66303.0,66302.0,0.32924125]
[1718597960799,0.866552,66303.0,66302.0,0.37440706]
[1718597961016,1.218197,66303.0,66302.0,0.16180706]
[1718597961234,1.218197,66303.0,66302.0,0.00085]
[1718597962119,1.218197,66303.0,66302.0,0.00385]
[1718597962801,1.228197,66303.0,66302.0,0.00685]
[1718597963026,1.228197,66303.0,66302.0,0.00385]
[1718597963233,1.228197,66303.0,66302.0,0.00085]
[1718597963449,1.228197,66303.0,66302.0,0.00285]
[1718597964089,1.218197,66303.0,66302.0,0.00285]
[1718597964702,1.218197,66303.0,66302.0,0.00585]
[1718597965118,1.218197,66303.0,66302.0,0.00285]
[1718597965246,1.218197,66303.0,66302.0,0.00385]
[1718597966548,1.2228537,66303.0,66302.0,0.00385]
[1718597980329,1.2734537,66303.0,66302.0,0.00385]
[1718597987556,1.3806537,66303.0,66302.0,0.00385]
[1718597987790,1.4295367,66303.0,66302.0,0.00385]
[1718597987978,1.4195367,66303.0,66302.0,0.00385]
[1718597994864,1.4295367,66303.0,66302.0,0.00385]
[1718597995121,1.4195367,66303.0,66302.0,0.00385]
[1718597995540,1.4295367,66303.0,66302.0,0.00385]
[1718597997357,1.78606949,66303.0,66302.0,0.00385]
[1718597997567,1.99276949,66303.0,66302.0,0.00385]
[1718597997773,1.99276949,66303.0,66302.0,0.00185]
[1718597997992,1.99276949,66303.0,66302.0,0.00085]
[1718597998207,1.99476949,66303.0,66302.0,0.00085]
[1718597998433,1.8426817,66303.0,66302.0,0.00085]
[1718597998660,1.8406817,66303.0,66302.0,0.00085]
[1718597998884,1.8456817,66303.0,66302.0,0.00085]
[1718597999089,1.8486817,66303.0,66302.0,0.00085]
[1718597999717,1.8406817,66303.0,66302.0,0.00085]
[1718598001177,1.8486817,66303.0,66302.0,0.00285]
[1718598001375,1.8436817,66303.0,66302.0,0.00185]
[1718598001573,1.8406817,66303.0,66302.0,0.00085]
[1718598001924,1.8406817,66303.0,66302.0,0.00185]
[1718598001925,1.99776949,66303.0,66302.0,0.00185]
[1718598002139,2.00076949,66303.0,66302.0,0.00285]
[1718598003408,1.95016949,66303.0,66302.0,0.00285]
[1718598003608,2.00076949,66303.0,66302.0,0.00285]
[1718598004648,1.8486817,66303.0,66302.0,0.00285]
[1718598005548,1.7980817,66303.0,66302.0,0.00285]
[1718598005784,1.8486817,66303.0,66302.0,0.00285]
[1718598006540,1.7880817,66303.0,66302.0,0.00285]
[1718598006754,1.7581817,66303.0,66302.0,0.00285]
[1718598010304,1.7481817,66303.0,66302.0,0.00285]
[1718598011054,1.3303367,66303.0,66302.0,0.00285]
[1718598011572,1.3403367,66303.0,66302.0,0.00285]
[1718598012807,0.6764467,66303.0,66302.0,0.00285]
[1718598013012,0.6764467,66303.0,66302.0,0.21545]
[1718598013242,1.0286917,66303.0,66302.0,0.21545]
[1718598013794,1.3303367,66303.0,66302.0,0.21545]
[1718598015082,1.0286917,66303.0,66302.0,0.21545]
[1718598015257,0.6764467,66303.0,66302.0,0.21545]
[1718598015662,0.7270467,66303.0,66302.0,0.21545]
[1718598016388,1.0286917,66303.0,66302.0,0.21545]
[1718598017343,1.0256917,66303.0,66302.0,0.21445]
[1718598017689,1.0256917,66303.0,66302.0,0.21845]
[1718598017914,1.0206917,66303.0,66302.0,0.21745]
[1718598018102,1.0206917,66303.0,66302.0,0.21445]
[1718598018574,1.0216917,66303.0,66302.0,0.21445]
[1718598018779,1.0226917,66303.0,66302.0,0.21445]
[1718598018907,1.0226917,66303.0,66302.0,0.09285]
[1718598018908,1.3343367,66303.0,66302.0,0.09285]
[1718598019107,1.3343367,66303.0,66302.0,0.00185]
[1718598021503,1.3243367,66303.0,66302.0,0.00185]
[1718598024615,1.3343367,66303.0,66302.0,0.00185]
[1718598025409,1.3243367,66303.0,66302.0,0.00185]
[1718598027451,1.3343367,66303.0,66302.0,0.00185]
[1718598028350,1.3243367,66303.0,66302.0,0.00185]
[1718598028551,1.3343367,66303.0,66302.0,0.00185]
[1718598029453,1.8438817,66303.0,66302.0,0.00185]
[1718598031439,1.84599524,66303.0,66302.0,0.00185]
[1718598031639,1.78539524,66303.0,66302.0,0.00185]
[1718598031851,1.83599524,66303.0,66302.0,0.00185]
[1718598032057,1.74049524,66303.0,66302.0,0.00185]
[1718598032864,1.43885024,66303.0,66302.0,0.00185]
[1718598033068,1.27585024,66303.0,66302.0,0.00185]
[1718598033278,1.32645024,66303.0,66302.0,0.00185]
[1718598035952,0.25847524,66303.0,66302.0,0.09045]
[1718598036146,0.27069324,66303.0,66302.0,0.09045]
[1718598036355,0.72316024,66303.0,66302.0,0.09045]
[1718598036993,0.10765324,66303.0,66302.0,0.33842937]
[1718598037200,0.10765324,66303.0,66302.0,0.39712834]
[1718598037391,0.15825324,66303.0,66302.0,0.39712834]
[1718598037803,0.10765324,66303.0,66302.0,0.39712834]
[1718598038001,0.151483,66303.0,66302.0,0.39712834]
[1718598038243,0.27069364,66303.0,66302.0,0.39712834]
[1718598038856,0.42151564,66303.0,66302.0,0.39712834]
[1718598039468,0.42151564,66303.0,66302.0,0.32934782]
[1718598040250,0.37091564,66303.0,66302.0,0.32934782]
[1718598040456,0.27069364,66303.0,66302.0,0.32934782]
[1718598041058,0.25069364,66303.0,66302.0,0.32934782]
[1718598042471,0.42151564,66303.0,66302.0,0.32934782]
[1718598042605,0.42151564,66303.0,66302.0,0.25618905]
[1718598044721,0.42151564,66303.0,66302.0,0.25618582]
[1718598046280,0.42151564,66303.0,66302.0,0.21105]
[1718598046455,0.27069364,66303.0,66302.0,0.21105]
[1718598046858,0.42151564,66303.0,66302.0,0.21105]
[1718598047624,0.72316064,66303.0,66302.0,0.21105]
[1718598049786,0.67256064,66303.0,66302.0,0.21105]
[1718598049987,0.10765364,66303.0,66302.0,0.21105]
[1718598050190,0.10765364,66303.0,66302.0,0.25617869]
[1718598050369,0.10765364,66303.0,66302.0,0.33045946]
[1718598050570,0.05765364,66303.0,66302.0,1.08458446]
[1718598050798,0.050883,66303.0,66302.0,1.08458446]
[1718598051012,0.050883,66303.0,66302.0,1.17484184]
[1718598051214,0.050883,66303.0,66302.0,0.87319184]
[1718598051419,0.050883,66303.0,66302.0,0.78293446]
[1718598051640,0.049883,66303.0,66302.0,0.78293446]
[1718598052206,0.05565798,66303.0,66302.0,0.78193446]
[1718598052402,0.048883,66303.0,66302.0,0.79293446]
[1718598052844,0.05565798,66303.0,66302.0,0.80293446]
[1718598053593,0.05565798,66303.0,66302.0,0.89319184]
[1718598053801,0.05565798,66303.0,66302.0,0.88219184]
[1718598054216,0.05565798,66303.0,66302.0,0.79193446]
[1718598054413,0.00677498,66303.0,66302.0,0.80393446]
[1718598054632,0.048883,66303.0,66302.0,0.80393446]
[1718598054841,0.05565798,66303.0,66302.0,0.79393446]
[1718598055044,0.05565798,66303.0,66302.0,0.80493446]
[1718598055453,0.05565798,66303.0,66302.0,0.79293446]
[1718598056264,0.05565798,66303.0,66302.0,0.86058178]
[1718598056464,0.05565798,66303.0,66302.0,0.79293446]
[1718598057102,0.048883,66303.0,66302.0,0.79293446]
[1718598057534,0.048883,66303.0,66302.0,0.80493446]
[1718598058019,0.048883,66303.0,66302.0,0.87257879]
[1718598058213,0.05565965,66303.0,66302.0,0.87257879]
[1718598059261,0.05565965,66303.0,66302.0,0.87832946]
[1718598061539,0.05565965,66303.0,66302.0,0.81068721]
[1718598061778,0.048883,66303.0,66302.0,0.81068721]
[1718598062369,0.048883,66303.0,66302.0,0.81048721]
[1718598062575,0.048883,66303.0,66302.0,0.60148721]
[1718598062793,0.05565965,66303.0,66302.0,0.60148721]
[1718598062931,0.00677665,66303.0,66302.0,1.11403721]
[1718598063137,0.14244,66309.0,66302.0,1.11403721]
[1718598063138,0.099483,66307.0,66306.0,0.150815]
[1718598063349,0.10626617,66307.0,66306.0,0.48687721]
[1718598063550,0.05566617,66307.0,66306.0,0.48687721]
[1718598063761,0.00678317,66307.0,66306.0,1.4593889]
[1718598063962,0.05566617,66307.0,66306.0,1.39177021]
[1718598064164,0.00093501,66311.0,66310.0,0.150806]
[1718598064401,0.0566077,66311.0,66310.0,0.41294955]
[1718598064951,0.04981801,66311.0,66310.0,0.66948121]
[1718598065154,0.00093501,66311.0,66310.0,0.97109421]
[1718598065375,0.00093501,66311.0,66310.0,1.08909421]
[1718598065588,0.00093501,66311.0,66310.0,1.15671622]
[1718598065977,0.00093501,66311.0,66310.0,1.09009421]
[1718598066187,0.00093501,66311.0,66310.0,1.15769092]
[1718598066388,0.00093501,66311.0,66310.0,0.48686821]
[1718598066594,0.00093501,66311.0,66310.0,0.55444847]
[1718598066993,0.00093501,66311.0,66310.0,0.48685021]
[1718598067205,0.00093501,66311.0,66310.0,0.48585021]
[1718598067414,0.00093501,66311.0,66310.0,0.79546321]
[1718598067636,0.00093501,66311.0,66310.0,0.79746321]
[1718598067840,0.00829409,66311.0,66310.0,0.79746466]
[1718598068669,0.00829409,66311.0,66310.0,0.79546466]
[1718598068898,0.00829409,66311.0,66310.0,0.80646466]
[1718598069314,0.00829409,66311.0,66310.0,0.85151155]
[1718598069518,0.00829409,66311.0,66310.0,0.80646466]
[1718598069744,0.00829409,66311.0,66310.0,0.39909398]
[1718598069955,0.10073409,66311.0,66310.0,0.39909398]
[1718598070167,0.00093501,66311.0,66310.0,0.54989998]
[1718598070369,0.00829409,66311.0,66310.0,0.54989998]
[1718598071560,0.00829409,66311.0,66310.0,0.54989961]
[1718598071797,0.00829409,66311.0,66310.0,0.85151261]
[1718598072772,0.00093501,66311.0,66310.0,0.85151261]
[1718598074080,0.00093501,66311.0,66310.0,0.85149926]
[1718598074604,0.00093501,66311.0,66310.0,0.80646429]
[1718598075170,0.00093501,66311.0,66310.0,0.85149797]
[1718598075375,0.00093501,66311.0,66310.0,1.45472397]
[1718598075494,0.00093501,66311.0,66310.0,1.32775589]
[1718598075921,0.00093501,66311.0,66310.0,1.34546722]
[1718598077035,0.00093501,66311.0,66310.0,1.72068022]
[1718598077159,0.00093501,66311.0,66310.0,1.46412777]
[1718598077379,0.00093501,66311.0,66310.0,1.35147641]
[1718598077723,0.00093501,66311.0,66310.0,1.65308941]
[1718598077926,0.00093501,66311.0,66310.0,1.64508941]
[1718598078080,0.00093501,66311.0,66310.0,1.63408941]
[1718598078285,0.00093501,66311.0,66310.0,1.59748941]
[1718598078494,0.00093501,66311.0,66310.0,1.61148941]
[1718598078921,0.00093501,66311.0,66310.0,1.59748941]
[1718598079696,0.00093501,66311.0,66310.0,1.58348941]
[1718598079903,0.00093501,66311.0,66310.0,1.59748941]
[1718598080346,0.00093501,66311.0,66310.0,1.30987641]
[1718598081117,0.00093501,66311.0,66310.0,1.72405011]
[1718598081286,0.00093501,66311.0,66310.0,1.61148941]
[1718598083097,0.00093501,66311.0,66310.0,1.61233941]
[1718598083299,0.00093501,66311.0,66310.0,1.72489155]
[1718598083586,0.00093501,66311.0,66310.0,1.42327855]
[1718598084032,0.00093501,66311.0,66310.0,1.72489155]
[1718598084439,0.00093501,66311.0,66310.0,1.42327855]
[1718598084672,0.00093501,66311.0,66310.0,1.42326134]
[1718598085317,0.00093501,66311.0,66310.0,1.31071242]
[1718598085531,0.00093501,66311.0,66310.0,1.61232542]
[1718598085754,0.00093501,66311.0,66310.0,1.42326134]
[1718598086832,0.00093501,66311.0,66310.0,1.31071242]
[1718598087460,0.00093501,66311.0,66310.0,1.42326134]
[1718598087841,0.00093501,66311.0,66310.0,1.42326137]
[1718598088266,0.00093501,66311.0,66310.0,1.42325294]
[1718598089324,0.00093501,66311.0,66310.0,1.77546594]
[1718598089531,0.00093501,66311.0,66310.0,1.81781014]
[1718598089736,0.00093501,66311.0,66310.0,1.67047922]
[1718598089945,0.00093501,66311.0,66310.0,1.66291922]
[1718598091465,0.00093501,66311.0,66310.0,1.69062976]
[1718598095380,0.00093501,66311.0,66310.0,1.64002976]
[1718598095578,0.00093501,66311.0,66310.0,1.69062976]
[1718598097280,0.00093501,66311.0,66310.0,1.75319479]
[1718598097682,0.00093501,66311.0,66310.0,1.75240295]
[1718598098713,0.00093501,66311.0,66310.0,1.63440295]
[1718598098893,0.00093501,66311.0,66310.0,1.54250295]
[1718598101703,0.00093501,66311.0,66310.0,1.68519342]
[1718598101906,0.00093501,66311.0,66310.0,1.55006295]
[1718598102086,0.00093501,66311.0,66310.0,1.68519991]
[1718598103065,0.00093501,66311.0,66310.0,1.74692712]
[1718598103266,0.00093501,66311.0,66310.0,1.67763991]
[1718598103495,0.00093501,66311.0,66310.0,1.55006295]
[1718598104317,0.00093501,66311.0,66310.0,1.68519991]
[1718598105515,0.00093501,66311.0,66310.0,1.62703991]
[1718598105715,0.00093501,66311.0,66310.0,1.67763991]
[1718598106956,0.00093501,66311.0,66310.0,1.54250295]
[1718598107532,0.00093501,66311.0,66310.0,1.49190295]
[1718598107734,0.00093501,66311.0,66310.0,1.67763991]
[1718598107938,0.00093501,66311.0,66310.0,1.54250295]
[1718598108160,0.00093501,66311.0,66310.0,1.67763991]
[1718598108356,0.00093501,66311.0,66310.0,1.76913991]
[1718598108567,0.00093501,66311.0,66310.0,1.67763991]
[1718598109379,0.00093501,66311.0,66310.0,1.54250295]
[1718598109758,0.00093501,66311.0,66310.0,1.49190295]
[1718598109980,0.00093501,66311.0,66310.0,1.37615401]
[1718598110163,0.00093501,66311.0,66310.0,1.54250295]
[1718598110589,0.00093501,66311.0,66310.0,1.60423152]
[1718598115045,0.00093501,66311.0,66310.0,1.30261852]
[1718598115448,0.00093501,66311.0,66310.0,1.30180009]
[1718598116285,0.00093501,66311.0,66310.0,1.00018709]
[1718598116699,0.00093501,66311.0,66310.0,1.30180009]
[1718598118982,0.00093501,66311.0,66310.0,1.60341309]
[1718598119401,0.00093501,66311.0,66310.0,1.69921309]
[1718598120423,0.00093501,66311.0,66310.0,1.64861309]
[1718598120592,0.00093501,66311.0,66310.0,1.69921309]
[1718598121404,0.00093501,66311.0,66310.0,1.70677309]
[1718598122041,0.00939401,66316.0,66313.0,0.2]
[1718598122244,0.01272241,66317.0,66313.0,0.2]
[1718598122245,0.01272241,66317.0,66316.0,0.247493]
[1718598122460,0.01272241,66317.0,66316.0,1.25056122]
[1718598122659,0.01272241,66317.0,66316.0,1.57514722]
[1718598122864,0.01272241,66317.0,66316.0,1.7825973]
[1718598123400,0.01272241,66317.0,66316.0,1.58270722]
[1718598123646,0.01272241,66317.0,66316.0,1.59570722]
[1718598123861,0.01272241,66317.0,66316.0,1.7955973]
[1718598124304,0.01272241,66317.0,66316.0,1.59570722]
[1718598125296,0.01272241,66317.0,66316.0,1.58814722]
[1718598125493,0.01272241,66317.0,66316.0,1.63874722]
[1718598125721,0.01272241,66317.0,66316.0,1.62574722]
[1718598125927,0.01272241,66317.0,66316.0,1.63974722]
[1718598126346,0.01272241,66317.0,66316.0,1.94889322]
[1718598126546,0.01272241,66317.0,66316.0,2.52560269]
[1718598126800,0.01272241,66317.0,66316.0,2.51804269]
[1718598127062,0.01272241,66317.0,66316.0,1.79636661]
[1718598127289,0.01272241,66317.0,66316.0,1.65704722]
[1718598128008,0.01272241,66317.0,66316.0,1.59531074]
[1718598130678,0.01272241,66317.0,66316.0,1.66456459]
[1718598130890,0.01272241,66317.0,66316.0,1.65700459]
[1718598131066,0.01272241,66317.0,66316.0,1.59531074]
[1718598132174,0.01272241,66317.0,66316.0,1.59135582]
[1718598132990,0.01272241,66317.0,66316.0,1.54075582]
[1718598133467,0.01272241,66317.0,66316.0,1.59135582]
[1718598134010,0.01272241,66317.0,66316.0,1.60038547]
[1718598134943,0.01272241,66317.0,66316.0,1.60794547]
[1718598135144,0.01272241,66317.0,66316.0,1.48082429]
[1718598135351,0.01272241,66317.0,66316.0,1.60018223]
[1718598135824,0.01272241,66317.0,66316.0,1.52859673]
[1718598136031,0.01272241,66317.0,66316.0,1.60018343]
[1718598136765,0.01272241,66317.0,66316.0,0.94641143]
[1718598137007,0.22322241,66317.0,66316.0,0.63579571]
[1718598137190,0.22322241,66317.0,66316.0,0.93761902]
[1718598137411,0.23114901,66317.0,66316.0,0.93761902]
[1718598137640,0.23114901,66317.0,66316.0,1.23920502]
[1718598138617,0.23114901,66317.0,66316.0,0.93761902]
[1718598139873,0.23114901,66317.0,66316.0,0.63603302]
[1718598139874,0.34358901,66317.0,66316.0,0.63603302]
[1718598140089,0.34358901,66317.0,66316.0,0.53603302]
[1718598140303,0.34358901,66317.0,66316.0,0.51303302]
[1718598140497,0.23114901,66317.0,66316.0,0.81461902]
[1718598142054,0.23114901,66317.0,66316.0,0.81660512]
[1718598143904,0.23114901,66317.0,66316.0,0.51501912]
[1718598144094,0.23114901,66317.0,66316.0,0.36422612]
[1718598144095,0.34358901,66317.0,66316.0,0.36422612]
[1718598144304,0.49437901,66317.0,66316.0,0.36422612]
[1718598144528,0.47437901,66317.0,66316.0,0.36422612]
[1718598144715,0.34358901,66317.0,66316.0,0.36422612]
[1718598144882,0.32358901,66317.0,66316.0,0.36422612]
[1718598145093,0.23114901,66317.0,66316.0,0.36422612]
[1718598145481,0.23114901,66317.0,66316.0,0.51501912]
[1718598146769,0.34358901,66317.0,66316.0,0.51501912]
[1718598147267,0.84656001,66317.0,66316.0,0.21213833]
[1718598147485,0.79596001,66317.0,66316.0,0.21213833]
[1718598147713,0.84656001,66317.0,66316.0,0.21307333]
[1718598148812,0.54497901,66317.0,66316.0,0.21307333]